Cogmind - Beta 9.6 @@@ ROGUE MODE // 2020.07.14 @ 01:20:37 Player: dhtilly Result: Destroyed by D-53 Grenadier with Mini Grenade Launcher Performance ------------- Evolutions (0) 0 Regions Visited (2) 400 Robots Destroyed (8) 40 Value Destroyed (213) 213 Prototype IDs (4) 80 Alien Tech Used (0) 0 Bonus (0) 0 TOTAL SCORE: 733 Bonus ------- None Cogmind --------- Core Integrity 0/250 Matter 264/300 Energy 100/100 System Corruption 0% Temperature Cool (0) Movement Core (100) Ox1 Location -10/Mines Parts ------- > --- POWER (1) -------- (None) > --- PROPULSION (2) --- (None) > --- UTILITY (2) ------ Small Storage Unit > --- WEAPON (2) ------- (None) > --- INVENTORY (6) ---- Light Ion Engine Compact Wheel Compact Wheel Heat Sink Mining Laser Peak State ------------ > --- POWER ------------ Ion Engine > --- PROPULSION ------- Wheel Compact Wheel > --- UTILITY ---------- Small Storage Unit > --- WEAPON ----------- Medium Laser Light Assault Rifle > --- INVENTORY -------- Light Ion Engine Light Assault Rifle [Rating: 6] Favorites ----------- Power Ion Engine Engine Ion Engine Propulsion Compact Wheel Wheel Compact Wheel Utility Small Storage Unit Storage Small Storage Unit Weapon Mining Laser Energy Gun Medium Laser Ballistic Gun Light Assault Rifle Launcher Rocket Launcher Special Weapon Mining Laser Build | -11 -10 -10 ------- Run | Scr Mat Min Slots Evolved . | . . . Power . | . . . Propulsion . | . . . Utility . | . . . Weapon . | . . . Parts Attached 13 | 6 6 1 Power 1 | 1 . . Engine 1 | 1 . . Core . | . . . Reactor . | . . . Propulsion 4 | 2 2 . Treads . | . . . Leg . | . . . Wheel 4 | 2 2 . Hover . | . . . Flight . | . . . Utility 1 | 1 . . Device . | . . . Storage 1 | 1 . . Processor . | . . . Hackware . | . . . Protection . | . . . Artifact . | . . . Weapon 7 | 2 4 1 Energy Gun 2 | 1 1 . Energy Cannon . | . . . Ballistic Gun 2 | 1 1 . Ballistic Cannon . | . . . Launcher 1 | . . 1 Special Weapon 2 | . 2 . Impact Weapon . | . . . Slashing Weapon . | . . . Piercing Weapon . | . . . Special Melee Weapon . | . . . Unidentified Prototypes . | . . . Parts Lost 12 | . 7 5 Power 1 | . 1 . Propulsion 4 | . 2 2 Utility . | . . . Weapon 7 | . 4 3 Highest Loss Streak 7 | . 7 5 Average Slot Usage (%) 62 | . 58 69 Engine 4 | . 7 . Wheel 24 | . 21 28 Storage 14 | . 14 14 Energy Gun 3 | . 6 . Ballistic Gun 4 | . 7 . Special Weapon 10 | . 1 26 Naked Turns . | . . . Heaviest Build 12 | 12 12 6 Greatest Support 32 | 26 32 32 Greatest Overweight (x) 3 | 1 3 1 Average Overweight (x) . | . . . Largest Inventory Capacity 6 | 6 6 6 Average Capacity 5 | 5 6 6 Most Carried 6 | 2 6 6 Average Carried 3 | 1 3 5 Final Capacity 6 | 6 6 6 Final Carried 6 | 2 6 5 Class Distribution -------------------- 100% | Mutant Dominant Class ---------------- Mutant | -10/Materials Mutant | -10/Mines Resources | -11 -10 -10 ----------- Run | Scr Mat Min Matter Collected 307 | 199 108 . Remotely . | . . . Salvage Created 255 | . 255 . Parts 12 | . 12 . Haulers Intercepted . | . . . Recyclers Shooed . | . . . Parts Field Recycled . | . . . Retrieved Matter . | . . . Parts Self-Destructed . | . . . Prevented . | . . . Kills | -11 -10 -10 ------- Run | Scr Mat Min Combat Hostiles Destroyed 8 | . 8 . Melee 1 | . 1 . Guns 7 | . 7 . Classes Destroyed 2 | . 2 . Swarmer 3 | . 3 . Grunt 5 | . 5 . Best Kill Streak 4 | . 4 . Combat Bots Only 4 | . 4 . Max Kills in Single Turn 1 | . 1 . Gunslinging . | . . . Exploded . | . . . Melee 1 | . 1 . Uniques/NPCs Destroyed . | . . . Combat | -11 -10 -10 -------- Run | Scr Mat Min Damage Taken 998 | . 628 370 Core 271 | . 159 112 Absorbed by Shields . | . . . Core Remaining (%) 100 | 100 . . Volleys Fired 36 | . 33 3 Largest 2 | . 2 2 Hottest 200 | . 70 200 Shots Fired 58 | . 53 5 Gun 53 | . 53 . Cannon . | . . . Launcher 1 | . . 1 Special 4 | . . 4 Kinetic 33 | . 33 . Thermal 24 | . 20 4 Explosive 1 | . . 1 Electromagnetic . | . . . Robot Hit Streak 6 | . 6 1 Robot Miss Streak 3 | . 3 . Penetration Max . | . . . Secondary Targets . | . . . Shots Hit Robots 36 | . 35 1 Core Hits 16 | . 16 . Critical Hits . | . . . Critical Kills . | . . . Critical Parts Destroyed . | . . . Melee Attacks . | . . . Impact . | . . . Slashing . | . . . Piercing . | . . . Sneak Attacks . | . . . Combat Hostiles . | . . . Follow-up Attacks . | . . . Damage Inflicted 343 | . 322 21 Guns 319 | . 319 . Cannons . | . . . Explosions 21 | . . 21 Melee . | . . . Ramming 3 | . 3 . Kinetic 169 | . 169 . Thermal 150 | . 150 . Explosive 21 | . . 21 Electromagnetic . | . . . Impact . | . . . Slashing . | . . . Piercing . | . . . Highest Corruption . | . . . Average Corruption . | . . . Corruption Purged . | . . . Overload Shots . | . . . Overflow Damage . | . . . Projectiles . | . . . Explosions . | . . . Melee . | . . . Knockbacks . | . . . Impact . | . . . Kinetic . | . . . Secondary . | . . . Self-Inflicted Damage 26 | . 1 25 Shots 1 | . . 1 Rammed 1 | . 1 . Targets Rammed 1 | . 1 . Kicked . | . . . Crushed . | . . . Highest Temperature 322 | . 322 21 Average Temperature 129 | . 148 12 Received Heat Transfer 270 | . 270 . Effects 1 | . 1 . Energy Bleed 1 | . 1 . Siege Activations . | . . . Robots Corrupted . | . . . Combat Hostiles . | . . . Parts Fried . | . . . Impact Corruptions . | . . . Robots Melted . | . . . Combat Hostiles . | . . . Parts Melted 1 | . 1 . Heat Transferred 420 | . 420 . Parts Sabotaged . | . . . Parts Stolen . | . . . Parts Stripped . | . . . Power Chain Reactions . | . . . Missiles Intercepted . | . . . Alert | -11 -10 -10 ------- Run | Scr Mat Min Peak Influence 170 | . 170 66 Average Influence 77 | . 98 64 Maximum Alert Level . | . . . Low Security (%) 100 | 100 100 100 Level 1 . | . . . Level 2 . | . . . Level 3 . | . . . Level 4 . | . . . Level 5 . | . . . High Security . | . . . Max Security . | . . . Squads Dispatched 5 | . 5 . Investigation 4 | . 4 . Extermination . | . . . Reinforcement 1 | . 1 . Assault . | . . . Garrison . | . . . Intercept . | . . . Construction Impeded . | . . . Haulers Reinforced . | . . . Stealth | -11 -10 -10 --------- Run | Scr Mat Min Distress Signals . | . . . Communications Jammed . | . . . Distress Signals . | . . . Times Spotted 25 | . 15 10 Peak Tracking Total 8 | . 6 8 Tactical Retreats 1 | . 1 . Traps | -11 -10 -10 ------- Run | Scr Mat Min Traps Triggered 1 | . 1 . Indirectly . | . . . Trap Hack Attempts . | . . . Triggered . | . . . Disarmed . | . . . Reprogrammed . | . . . Reused . | . . . Traps Extracted . | . . . Installed . | . . . Triggered . | . . . Machines | -11 -10 -10 ---------- Run | Scr Mat Min Machines Disabled . | . . . Max in Single Turn . | . . . Machines Sabotaged . | . . . Garrisons Compromised . | . . . Overloaded Fab Kills . | . . . Fab Network Shutdowns . | . . . Hacking | -11 -10 -10 --------- Run | Scr Mat Min Machines Accessed 4 | . 4 . Terminals 4 | . 4 . Fabricators . | . . . Repair Stations . | . . . Recycling Units . | . . . Scanalyzers . | . . . Garrison Access . | . . . Total Hacks 15 | . 15 . Successful 6 | . 6 . Failed 9 | . 9 . Catastrophic 6 | . 6 . Database Lockouts . | . . . Manual 7 | . 7 . Terminals 15 | . 15 . Fabricators . | . . . Repair Stations . | . . . Recycling Units . | . . . Scanalyzers . | . . . Garrison Access . | . . . Terminal Hacks 6 | . 6 . Prototype ID Bank 2 | . 2 . Alert Level 1 | . 1 . Dispatch Records 1 | . 1 . Registered Prototypes 1 | . 1 . Zone Layout 1 | . 1 . Fabricator Hacks . | . . . Repair Station Hacks . | . . . Recycling Unit Hacks . | . . . Scanalyzer . | . . . Garrison Access Hacks . | . . . Unauthorized Hacks . | . . . Terminals . | . . . Fabricators . | . . . Repair Stations . | . . . Recycling Units . | . . . Scanalyzers . | . . . Garrison Access . | . . . Data Cores Recovered . | . . . Used . | . . . Hacking Detections 4 | . 4 . Full Trace Events 4 | . 4 . Feedback Events . | . . . Feedback Blocked . | . . . Robot Schematics Acquired . | . . . Robots Built . | . . . Matter . | . . . Time . | . . . Total Robot Build Rating . | . . . Part Schematics Acquired . | . . . Parts Built . | . . . Matter . | . . . Time . | . . . Total Part Build Rating . | . . . Parts Repaired . | . . . Time . | . . . Parts Recycled . | . . . Recycled Matter . | . . . Retrieved Matter . | . . . Retrieved Components . | . . . Parts Scanalyzed . | . . . Part Schematics Acquired . | . . . Parts Damaged . | . . . Bothacking | -11 -10 -10 ------------ Run | Scr Mat Min Used RIF Installer . | . . . Robots Hacked . | . . . Non-combat . | . . . Combat . | . . . Robot Hacks Applied . | . . . Relay Couplers Released . | . . . Robots Rewired . | . . . Allies Hacked . | . . . Hacks Repelled . | . . . Allies | -11 -10 -10 -------- Run | Scr Mat Min Total Allies . | . . . Largest Group . | . . . Highest-Rated Group . | . . . Highest-Rated Ally . | . . . Total Orders . | . . . Ally Attacks . | . . . Total Damage . | . . . Kills . | . . . Allies Corrupted . | . . . Allies Melted . | . . . Intel | -11 -10 -10 ------- Run | Scr Mat Min Robot Analysis Total . | . . . Derelict Logs Recovered . | . . . Drone Launches . | . . . Drone Recoveries . | . . . Exploration | -11 -10 -10 ------------- Run | Scr Mat Min Turns Passed 455 | 41 256 158 Spaces Moved 322 | 36 153 133 Core 26 | 7 16 3 Treads . | . . . Legs . | . . . Wheels 296 | 29 137 130 Hover . | . . . Flight . | . . . Fastest Speed 50 | 50 80 100 Average Speed 97 | 85 98 100 Slowest Speed 200 | 100 200 100 Overloaded Moves . | . . . Propulsion Burnouts . | . . . Robots Hopped . | . . . Cave-ins Triggered . | . . . Exploration Rate (%) 25 | 3 43 31 Regions Visited 2 Branch Regions 1 Pre-discovered Areas . | . . . Known Exits Taken . | . . . Unknown Exits Taken 2 | 1 1 . Scrap Searched . | . . . Spaces Dug 4 | . . 4 Terrain Destroyed 16 | . . 16 Melee . | . . . Projectile 4 | . . 4 AOE 12 | . . 12 Actions | -11 -10 -10 --------- Run | Scr Mat Min Total 398 | 43 210 145 Wait 18 | . 12 6 Move 320 | 35 152 133 Hop . | . . . Pick Up 9 | 2 6 1 Fast Attach 10 | 6 4 . Attach 3 | . 2 1 Detach . | . . . Swap . | . . . Drop 1 | . . 1 Fire 36 | . 33 3 Melee . | . . . Ram 1 | . 1 . Kick . | . . . Crush . | . . . Escape Stasis . | . . . Rewire . | . . . Trap . | . . . Miscellaneous . | . . . Route ------- -11/Scrapyard -10/Materials -10/Mines History --------- Turn | Location | Event 23 | -11/Scrapyard | Discovered new exit (range 15) 42 | -11/Scrapyard | Entered Materials 181 | -10/Materials | Core integrity fell below 50% 199 | -10/Materials | Discovered new exit (range 16) 216 | -10/Materials | Lost 7 parts (1p2n4w) 298 | -10/Materials | Entered Mines 305 | -10/Mines | Received a Rocket Launcher from a helpful Derelict 328 | -10/Mines | Build established: Mutant 416 | -10/Mines | Assembled infested the area 452 | -10/Mines | Core integrity fell below 20% 456 | -10/Mines | Destroyed by D-53 Grenadier with Mini Grenade Launcher Last Messages --------------- K-01 Serf cleans the Plasma Injector. ALERT: Infestation in the mines, dispatching Demolisher response squad. K-01 Serf cleans the Plasma Injector. C-30 ARC bursts open, deploying its payload. D-53 Grenadier unfolds itself. Mining Laser destroyed. K-01 Serf destroyed. U-05 Engineer lays Concrete. Mining Laser destroyed. U-05 Engineer destroyed. as-24416 destroyed. as-24381 destroyed. as-62945 destroyed. Com. Wheel destroyed. Rocket Launcher destroyed. as-03221 destroyed. as-75190 destroyed. as-67543 destroyed. as-51445 destroyed. The unstable cave ceiling collapses. Map ----- +----------------------------------------------------+ | | | | | | | | | | | ?????????????????????????????????????????????????? | | ?????????????????????????????????????????????????? | | ?????????????????????????????????????????????????? | | ?????????????????????????????????????????????????? | | ?????????????????????????????????????????????????? | | ?????????????????????????????????????????????????? | | ?????????????????????????????????????????????????? | | ?????????????????????????????????????????????????? | | ?????????????????????????????????????????????????? | | ?????????????????????????????????????????????????? | | ???????????????????????????????????##????????????? | | ?????????????????????????????????# #????????????? | | ????????????????????????????????# ?????????????? | | ?# ????????????????????????#### ???????????????? | | ?# ????????????????????#### ????????????????? | | ?# ????????????????????# ?????????????????? | | ?# ???????????????????? ??????????????????? | | ?# ???????####?????###? % ???????????????????? | | ?# ??????## ##????# ##%* #????????????????????? | | ?# ??????# ##??## ##???????????????????? | | ?# #??????# #??# @ #???????????????????? | | ?# #?????## #?## #???????????????????? | | ?# #?##### #?# ##???????????????????? | | ## #?# #?## #???????????????????? | | # ### ## """ #?# #???????????????????? | | ## ## """ ## d ##???????????????????? | | """ # %d ##????????????????????? | | # #### ## * ###????????????????????? | | ## ##??# ##### ###??????????????????????? | | ?# ##### ##?### # #????????????????????????? | | ## #### ######????????????????????????? | | # #### ##????????????????????????????? | | # #??# ##???????????????????????????? | | # ##??##### #???????????????????????????? | | ## ##???????## #???????????????????????????? | | ?####?????????# ##???????????????????????????? | | ??????????????# ##????????????????????????????? | | ??????????????# #?????????????????????????????? | | ??????????????## #?????????????????????????????? | | ???????????##### #?????????????????????????????? | | ???????????# #?????????????????????????????? | | ???????????# #?????????????????????????????? | | ???????????# ##????????????????????????????? | | ???????????### #????????????????????????????? | | ?????????????## #????????????????????????????? | +----------------------------------------------------+ Best States ------------- Heat Dissipation 25 Energy Generation 10 Energy Capacity 250 Matter Stores 300 Matter Capacity 300 Sight Range 16 Terrain Scan Density 10 Evasion (%) 44 Item Schematics ----------------- None Robot Schematics ------------------ None Fabricated ------------ Nothing Alien Tech Used ----------------- None Achievements -------------- Fist Fight Challenges ------------ None Game ------ Seed TransdimensionalGlidesysMace Manual? 0 Play Time 00:09:56 Cumulative 8.3 hours Start 2020.07.14 @ 00:51:52 End 2020.07.14 @ 01:20:37 Sessions 2 Manual Loads 0 Difficulty Rogue Special Mode None Game No. 11 Rogue 11 Adventurer 0 Explorer 0 Win Type - Total 0 Types 0/0/0/0/0/0/0 Lore% 4 Gallery% 13 Achievement% 12 Wizard Run 0 Options --------- ASCII 0 Keyboard 1 Movement Vi Keybinds 0 Fullscreen 2 Font 12/Terminus Map View 83x54 Tactical HUD 0 Map Filters NONE Filters NONE Steam 1 RUN: 0faa8b5c-e10c-4dbf-8f24-5edc88b0c420